bitfinex-derivatives/quotes_ETHF0:USTF0_20250426
["timestamp","ask_amount","ask_price","bid_price","bid_amount"]
[1745657210944,10.91105019,1808.0,1807.9,50.11359]
[1745657211142,9.78612019,1808.0,1807.9,50.11359]
[1745657211339,8.62294019,1808.0,1807.9,50.11359]
[1745657211546,7.15134019,1808.0,1807.9,50.11359]
[1745657211747,5.38139019,1808.0,1807.9,50.11359]
[1745657212047,2.72457019,1808.0,1807.9,60.37659]
[1745657212249,20.81513949,1808.1,1808.0,1.10573]
[1745657212749,16.92076949,1808.1,1808.0,6.10573]
[1745657212947,4.0171,1808.8,1808.7,1.1053]
[1745657213346,6.85105856,1808.9,1808.8,1.10524]
[1745657214043,6.85105856,1808.9,1808.8,5.19394]
[1745657215347,39.7467722,1810.0,1809.9,1.10456]
[1745657215546,39.7467722,1810.0,1809.9,10.261]
[1745657215857,39.7467722,1810.0,1809.8,3.2078]
[1745657216250,47.9545722,1810.0,1809.6,10.261]
[1745657216554,17.66325667,1809.7,1809.6,10.261]
[1745657217346,36.01132498,1810.0,1809.6,16.36575]
[1745657217655,36.01132498,1810.0,1809.9,4.31236]
[1745657217852,36.01132498,1810.0,1809.9,45.11236]
[1745657218250,36.01132498,1810.0,1809.9,44.0078]
[1745657218445,36.01132498,1810.0,1809.9,45.11236]
[1745657219057,36.01132498,1810.0,1809.9,44.0078]
[1745657219355,36.01132498,1810.0,1809.9,45.11236]
[1745657219843,5.15105,1810.3,1809.9,44.0078]
[1745657220049,4.0467,1810.3,1809.9,44.0078]
[1745657220350,1.1045,1810.1,1809.7,66.0631]
[1745657220654,3.2078,1809.9,1809.6,10.261]
[1745657220853,3.903,1809.8,1809.7,40.8]
[1745657221257,8.903,1809.8,1809.6,10.261]
[1745657221453,3.903,1809.8,1809.6,10.261]
[1745657221753,3.2078,1810.2,1809.6,10.261]
[1745657222051,3.2078,1809.8,1809.6,10.261]
[1745657222253,5.00769,1809.7,1809.6,10.261]
[1745657222450,5.00769,1809.7,1809.4,3.2078]
[1745657222656,1.10479,1809.6,1809.4,3.2078]
[1745657222956,1.10487,1809.4,1809.1,13.1838]
[1745657223255,7.0084,1809.3,1808.6,13.1838]
[1745657223555,3.2078,1809.2,1808.6,44.0078]
[1745657223762,3.8006,1809.1,1808.3,18.1569]
[1745657224059,1.10526,1808.8,1808.4,1.10546]
[1745657224259,3.8006,1808.7,1808.3,17.0514]
[1745657224457,3.8006,1808.7,1808.5,3.2078]
[1745657224647,8.222,1809.4,1808.5,3.2078]
[1745657224851,3.8006,1808.9,1808.6,1.10534]
[1745657225353,3.8006,1808.9,1808.6,1.10532]
[1745657225553,4.31291,1809.0,1808.5,3.2078]
[1745657225755,8.222,1809.4,1808.7,3.2078]
[1745657225955,4.0949,1809.4,1808.8,1.10521]
[1745657226255,3.8349,1809.3,1808.4,3.2078]
[1745657226461,1.10503,1809.2,1808.5,4.1151]
[1745657226653,1.10513,1809.0,1808.6,4.31313]
[1745657226848,3.8349,1808.9,1808.6,4.31314]
[1745657227054,3.8349,1808.9,1808.7,1.10529]
[1745657227355,3.8349,1808.9,1808.6,3.2078]
[1745657227763,3.8349,1808.9,1808.7,1.10526]
[1745657228259,3.8349,1808.9,1808.6,3.2078]
[1745657228552,4.94011,1808.9,1808.6,3.2078]
[1745657228752,1.10526,1808.8,1808.6,3.2078]
[1745657228954,4.0398,1808.7,1808.4,3.2078]
[1745657229165,1.10538,1808.6,1808.4,3.2078]
[1745657229557,4.0398,1808.5,1808.4,3.2078]
[1745657230458,4.0398,1808.5,1808.4,44.0078]
[1745657230657,1.1056,1808.2,1808.1,3.2078]
[1745657231264,1.10566,1808.1,1807.8,12.9128]
[1745657231561,4.0398,1808.1,1807.8,14.01861]
[1745657231761,4.0398,1808.1,1807.8,53.7128]
[1745657232358,3.2078,1808.5,1807.9,3.7445]
[1745657232560,3.9332,1808.7,1808.6,1.10536]
[1745657232753,3.9332,1808.7,1808.4,3.2078]
[1745657233155,3.9332,1808.7,1808.4,4.31324]
[1745657233449,1.10539,1808.6,1808.3,3.7445]
[1745657233648,3.9332,1808.5,1808.2,3.2078]
[1745657233857,3.9332,1808.5,1808.0,1.10569]
[1745657234051,1.10552,1808.4,1807.9,6.9523]
[1745657234260,5.03876,1808.3,1808.0,1.10571]
[1745657234464,3.9332,1808.3,1808.0,1.10571]
[1745657234661,3.9332,1808.3,1808.2,1.1056]
[1745657235060,1.10534,1808.7,1808.1,3.2078]
[1745657235258,3.2078,1808.9,1808.3,3.2078]
[1745657235462,3.7503,1808.8,1808.5,4.31322]
[1745657235664,3.7503,1808.8,1808.6,1.10535]
[1745657235961,1.10503,1809.2,1808.5,5.97131]
[1745657236163,3.7503,1809.0,1808.8,1.10519]
[1745657236664,3.7503,1809.0,1808.9,1.10517]
[1745657236964,3.7503,1809.0,1808.7,3.2078]
[1745657237155,3.7503,1809.0,1808.7,4.31308]
[1745657237355,3.7503,1809.0,1808.7,3.2078]
[1745657237661,1.10517,1808.9,1808.7,3.2078]
[1745657237857,4.91094,1808.8,1808.7,3.2078]
[1745657238664,3.8057,1808.8,1808.7,3.2078]
[1745657238857,4.91094,1808.8,1808.7,3.2078]
[1745657239263,3.8057,1808.8,1808.7,3.2078]
[1745657239463,4.91094,1808.8,1808.7,3.2078]
[1745657240352,4.91094,1808.8,1808.4,9.428]
[1745657240353,1.10542,1808.5,1808.4,9.428]
[1745657240656,1.1055,1808.4,1808.2,4.1049]
[1745657240855,3.9717,1808.3,1808.2,1.1056]
[1745657241550,3.2078,1809.1,1808.2,5.0]
[1745657241754,3.2078,1809.1,1808.1,3.2078]
[1745657241755,1.10521,1808.9,1808.6,1.10534]
[1745657241953,3.9717,1808.8,1808.6,5.09534]
[1745657242158,3.9717,1808.8,1808.6,3.99]
[1745657242159,5.07694,1808.8,1808.6,3.99]
[1745657242363,5.07694,1808.8,1808.5,10.25938]
[1745657242764,5.07699,1808.8,1808.5,9.154]
[1745657242956,1.10532,1808.7,1808.5,9.154]
[1745657243156,1.10536,1808.6,1808.5,9.154]
[1745657243762,1.10553,1808.4,1808.2,3.2078]
[1745657243963,1.10554,1808.3,1808.2,3.2078]
[1745657244170,4.4481,1808.3,1808.2,3.2078]
[1745657244365,5.55364,1808.3,1808.2,3.2078]
[1745657244870,4.4481,1808.3,1808.2,3.2078]
[1745657245354,5.55364,1808.3,1808.2,3.2078]
[1745657245560,4.4481,1808.3,1808.2,3.2078]
[1745657247067,4.4481,1808.3,1808.2,4.3134]
[1745657247272,3.2078,1808.7,1808.2,4.3134]
[1745657247567,4.4172,1808.4,1808.3,1.10554]
[1745657247770,5.52271,1808.4,1808.2,3.2078]
[1745657247967,1.10554,1808.3,1808.2,3.2078]
[1745657248171,4.4172,1808.3,1808.0,13.46851]
[1745657248467,5.52278,1808.3,1808.0,13.46851]
[1745657248669,5.52278,1808.3,1808.1,1.10565]
[1745657248869,5.52278,1808.3,1808.0,12.3628]
[1745657249071,5.52278,1808.3,1808.0,13.46848]
[1745657249264,1.10561,1808.2,1808.0,13.46848]
[1745657249461,5.52281,1808.2,1808.0,13.46848]
[1745657249669,5.52281,1808.2,1807.7,3.2078]
[1745657249670,15.38908,1808.2,1807.7,3.2078]
[1745657249969,5.97215,1808.0,1807.3,9.155]
[1745657250168,1.10594,1807.7,1807.5,1.106]
[1745657250369,4.2191,1807.6,1807.4,46.01975]
[1745657250563,3.2078,1807.9,1807.5,1.10602]
[1745657250763,4.2191,1807.8,1807.4,41.90605]
[1745657250969,1.106,1807.6,1807.4,1.10609]
[1745657251271,1.10597,1807.6,1807.4,1.10606]
[1745657251472,1.10597,1807.6,1807.4,41.90606]
[1745657251972,5.32499,1807.8,1807.6,1.10596]
[1745657252369,1.10593,1807.7,1807.5,1.10601]
[1745657252668,1.10593,1807.7,1807.4,4.1137]
[1745657252669,4.2191,1807.8,1807.4,7.3215]
[1745657252864,1.10591,1807.7,1807.4,1.10606]
[1745657253064,4.2384,1807.6,1807.5,1.10603]
[1745657253274,3.2078,1808.0,1807.4,4.4157]
[1745657253469,4.2384,1807.9,1807.4,7.6235]
[1745657253967,4.2384,1807.9,1807.7,1.10588]
[1745657254365,4.2384,1807.9,1807.7,5.52158]
[1745657254969,4.2384,1808.1,1807.7,4.4157]
[1745657255267,4.2384,1808.1,1808.0,1.10573]
[1745657255467,8.55174,1808.4,1808.0,1.10573]
[1745657255668,1.10556,1808.3,1808.1,4.4157]
[1745657255868,5.32056,1808.3,1808.1,4.4157]
[1745657256071,4.215,1808.3,1808.1,4.4157]
[1745657256269,5.32055,1808.3,1808.1,4.4157]
[1745657256474,1.1056,1808.2,1808.1,4.4157]
[1745657256676,4.215,1808.3,1808.1,4.4157]
[1745657256677,5.32058,1808.3,1808.1,4.4157]
[1745657256872,4.215,1808.3,1808.1,4.4157]
[1745657257172,1.1057,1808.1,1807.9,3.2078]
[1745657257366,2.76322,1808.8,1807.9,3.2078]
[1745657257568,1.10557,1808.3,1808.0,5.31762]
[1745657257865,7.4228,1808.7,1808.0,4.2119]
[1745657258062,3.2078,1809.5,1808.6,3.2078]
[1745657258266,3.2078,1809.5,1809.0,1.10508]
[1745657258267,4.215,1809.4,1809.0,1.10508]
[1745657258462,4.215,1809.4,1809.1,1.10505]
[1745657258868,4.215,1809.4,1809.2,4.1381]
[1745657259071,4.215,1809.4,1809.2,5.24306]
[1745657259270,3.2078,1809.5,1809.2,5.24306]
[1745657259464,4.2617,1809.6,1809.2,4.1381]
[1745657259669,4.2617,1809.6,1809.2,5.24305]
[1745657259870,3.2078,1809.4,1808.9,40.8]
[1745657260070,4.2617,1809.3,1809.0,1.10506]
[1745657260270,4.2617,1809.3,1809.0,5.24316]
[1745657260670,4.2617,1809.3,1809.0,4.1381]
[1745657261079,4.2617,1809.3,1809.0,5.24319]
[1745657261482,4.2617,1809.3,1809.0,4.1381]
[1745657261674,5.36664,1809.3,1809.0,4.1381]
[1745657261874,4.2617,1809.3,1809.0,5.2432]
[1745657262070,5.36669,1809.3,1809.0,4.1381]
[1745657262381,4.2617,1809.3,1809.0,4.1381]
[1745657262580,5.36667,1809.3,1809.0,4.1381]
[1745657262784,4.2617,1809.3,1809.0,5.2432]
[1745657263081,5.36665,1809.3,1809.0,5.2432]
[1745657263272,5.36666,1809.3,1809.0,4.1381]
[1745657263471,5.36666,1809.3,1809.0,5.24319]
[1745657264276,4.2617,1809.3,1809.0,4.1381]
[1745657264687,1.10501,1809.2,1809.0,4.1381]
[1745657264880,4.0879,1809.1,1809.0,5.24321]
[1745657265283,4.0879,1809.1,1808.9,40.8]
[1745657265486,1.10511,1809.0,1808.8,11.8348]
[1745657265984,4.0879,1808.9,1808.8,52.6348]
[1745657266285,4.0879,1808.9,1808.8,53.74004]
[1745657266486,4.0879,1808.9,1808.8,12.94004]
[1745657266695,4.0879,1808.9,1808.8,11.8348]
[1745657267084,5.19307,1808.9,1808.8,11.8348]
[1745657267881,1.10536,1808.6,1808.4,1.10545]
[1745657268386,4.2327,1808.5,1808.4,1.10545]
[1745657268576,4.2327,1808.5,1808.4,5.27725]
[1745657268781,4.2327,1808.5,1808.2,8.623]
[1745657268981,1.10554,1808.3,1808.2,8.623]
[1745657269188,4.31334,1808.3,1808.2,8.623]
[1745657269392,3.2078,1808.3,1808.2,8.623]
[1745657269693,1.10548,1808.4,1808.2,13.9004]
[1745657270191,4.2327,1808.5,1808.2,12.7948]
[1745657270391,1.10554,1808.3,1808.2,8.623]
[1745657270689,4.2327,1808.5,1808.3,1.10554]
[1745657270877,3.2078,1808.6,1808.4,1.10548]
[1745657271083,4.31296,1809.0,1808.7,1.10527]
[1745657271287,5.45253,1809.0,1808.8,1.1052]
[1745657271488,5.45253,1809.0,1808.7,1.10526]
[1745657271887,1.10518,1808.9,1808.7,1.10526]
[1745657272292,5.45255,1809.0,1808.7,1.10526]
[1745657272794,4.3474,1809.0,1808.5,7.4004]
[1745657272990,1.10527,1808.8,1808.5,5.29799]
[1745657273189,10.31807,1809.0,1808.5,4.1926]
[1745657273488,1.10536,1808.6,1808.3,3.2078]
[1745657273688,1.10536,1808.6,1808.4,4.1926]
[1745657273888,1.10542,1808.5,1808.4,4.1926]
[1745657274088,4.3474,1808.7,1808.4,4.1926]
[1745657274586,3.2078,1808.7,1808.4,2.76371]
[1745657274783,1.10503,1809.2,1808.8,1.1052]
[1745657274983,7.4191,1809.3,1808.9,4.5403]
[1745657275194,1.10508,1809.1,1808.9,4.5403]
[1745657275793,8.52408,1809.3,1809.0,1.10509]
[1745657275990,1.10489,1809.4,1809.1,4.5403]
[1745657276294,1.1049,1809.4,1809.1,5.64535]
[1745657276484,8.52387,1809.6,1809.1,4.5403]
[1745657276681,1.10481,1809.5,1809.2,5.64526]
[1745657276891,4.2113,1809.5,1809.3,1.10492]
[1745657277087,4.2113,1809.5,1809.3,1.10491]
[1745657277292,5.31611,1809.5,1809.1,3.2078]
[1745657277494,4.2113,1809.5,1809.2,4.1861]
[1745657277695,5.31613,1809.5,1809.2,5.29107]
[1745657278494,4.2113,1809.5,1809.0,1.10507]
[1745657278695,1.10492,1809.4,1809.1,1.10503]
[1745657279001,3.2078,1809.6,1809.2,1.10499]
[1745657279293,4.4555,1809.5,1809.3,5.29101]
[1745657279489,4.3126,1809.6,1809.4,4.1861]
[1745657279689,3.2078,1809.6,1809.4,4.1861]
[1745657279891,4.4555,1809.9,1809.4,17.2571]
[1745657280084,4.4555,1809.9,1809.4,12.2571]
[1745657280382,4.4555,1809.9,1809.5,40.8]
[1745657280585,3.2078,1810.4,1809.8,1.10462]
[1745657280586,1.10447,1810.1,1809.8,1.10462]
[1745657280988,1.10449,1810.1,1809.9,4.5209]
[1745657281188,1.10448,1810.1,1809.9,4.5209]
[1745657281388,1.1045,1810.0,1809.9,4.5209]
[1745657281699,4.3368,1810.1,1809.5,44.0078]
[1745657281888,1.10475,1809.6,1809.5,45.3209]
[1745657282196,5.96911,1810.0,1809.5,45.3209]
[1745657282387,1.10463,1809.8,1809.5,46.42567]
[1745657282790,3.2078,1810.0,1809.5,45.3209]
[1745657282997,7.5446,1809.8,1809.5,45.3209]
[1745657283195,1.10475,1809.6,1809.5,45.3209]
[1745657283387,7.5446,1809.8,1809.5,46.42571]
[1745657283590,4.31245,1809.8,1809.5,45.3209]
[1745657283794,3.2078,1810.0,1809.5,45.3209]
[1745657283991,3.2078,1809.8,1809.5,40.8]
[1745657284195,4.183,1809.7,1809.6,1.10475]
[1745657284493,3.2078,1810.2,1809.5,45.1549]
[1745657284691,3.2078,1809.8,1809.5,45.1549]
[1745657284999,5.28772,1809.7,1809.5,1.10481]
[1745657285694,1.10476,1809.6,1809.4,13.53073]
[1745657285893,4.183,1809.6,1809.4,13.53073]
[1745657286097,1.10481,1809.5,1809.4,53.2259]
[1745657286291,1.10481,1809.5,1809.4,8.071]
[1745657286492,1.10481,1809.5,1808.1,3.2078]
[1745657286493,8.2078,1809.5,1808.1,3.2078]
[1745657286690,8.2078,1809.5,1808.3,4.4001]
[1745657286691,1.10542,1808.5,1808.3,4.4001]
[1745657287194,5.67222,1808.5,1808.3,4.4001]
[1745657287388,5.67222,1808.5,1808.1,40.8]
[1745657287589,5.67222,1808.5,1808.1,46.30574]
[1745657287789,5.67222,1808.5,1808.1,45.2001]
[1745657288191,8.88002,1808.5,1808.1,45.2001]
[1745657288599,8.88002,1808.5,1808.1,40.8]
[1745657289091,13.88002,1808.5,1808.0,8.07]
[1745657289284,19.27554573,1808.5,1808.0,8.07]
[1745657289492,1.10576,1808.0,1807.7,17.27325003]
[1745657289695,3.2078,1808.2,1807.7,20.35976003]
[1745657289897,1.10574,1808.0,1807.7,21.46563003]
[1745657290098,1.10573,1808.0,1807.7,14.21371]
[1745657290393,1.10577,1808.0,1807.7,5.29829]
[1745657290596,4.316,1808.1,1807.7,5.2983]
[1745657290791,1.10573,1808.0,1807.7,5.2983]
[1745657290995,1.10573,1808.0,1807.7,4.1924]
[1745657291196,1.10587,1807.8,1807.5,9.176]
[1745657291400,1.10587,1807.8,1807.6,4.1924]
[1745657291693,1.10591,1807.7,1807.6,4.1924]
[1745657292291,5.42189,1807.8,1807.6,4.1924]
[1745657292498,1.10591,1807.7,1807.6,4.1924]
[1745657293097,4.316,1807.8,1807.6,4.1924]
[1745657293098,5.42189,1807.8,1807.6,4.1924]
[1745657293287,4.316,1807.8,1807.6,5.29833]
[1745657293490,5.42186,1807.8,1807.6,4.1924]
[1745657293687,5.42186,1807.8,1807.7,4.1712]
[1745657294301,1.10597,1807.7,1807.5,48.87]
[1745657294596,3.2078,1807.9,1807.5,12.2412]
[1745657294789,1.10575,1808.0,1807.7,4.31366]
[1745657294995,1.10575,1808.0,1807.8,4.1712]
[1745657295294,3.2078,1808.1,1807.9,1.10575]
[1745657295503,4.31346,1808.1,1808.0,4.2105]
[1745657295800,3.2078,1808.1,1808.0,4.2105]
[1745657295996,1.10559,1808.3,1808.0,5.31622]
[1745657296188,7.3799,1808.4,1808.0,4.2105]
[1745657296688,1.10557,1808.3,1808.0,5.3162]
[1745657296895,8.48541,1808.4,1808.1,1.10564]
[1745657297088,7.3799,1808.4,1808.2,5.31607]
[1745657297294,3.2078,1808.7,1808.3,1.10554]
[1745657297493,3.2078,1808.7,1808.4,4.2105]
[1745657297796,1.10542,1808.5,1808.4,4.2105]
[1745657298994,5.54849,1808.6,1808.4,4.2105]
[1745657299194,3.2078,1808.7,1808.4,4.2105]
[1745657299396,4.2752,1808.9,1808.6,1.10536]
[1745657299594,5.38038,1808.9,1808.7,4.5353]
[1745657299791,11.6918,1809.2,1808.7,4.5353]
[1745657299991,4.2752,1809.1,1808.9,1.10516]
[1745657300196,1.10511,1809.0,1808.7,5.64055]
[1745657300502,1.1053,1808.7,1808.6,7.537]
[1745657300693,3.2078,1808.8,1808.3,4.31332]
[1745657300694,1.1054,1808.6,1808.3,5.64082]
[1745657301005,1.10532,1808.7,1808.4,5.64072]
[1745657301701,4.2091,1808.7,1808.4,4.5353]
[1745657301901,5.31442,1808.7,1808.4,4.5353]
[1745657302103,4.2091,1808.7,1808.4,4.5353]
[1745657302305,1.10539,1808.6,1808.4,4.5353]
[1745657302507,4.31306,1808.8,1808.4,4.5353]
[1745657302701,3.2078,1808.8,1808.5,1.1054]
[1745657302901,3.2078,1808.8,1808.6,5.49233]
[1745657303203,3.2078,1808.8,1808.7,4.387]
[1745657303400,4.2091,1808.9,1808.7,4.387]
[1745657303800,4.2091,1808.9,1808.7,5.49226]
[1745657304196,4.2091,1808.9,1808.7,5.4923]
[1745657304402,4.2091,1808.9,1808.7,4.387]
[1745657304801,4.2091,1808.9,1808.5,1.10539]
[1745657304802,1.10524,1808.8,1808.5,1.10539]
[1745657305102,4.1581,1808.7,1808.5,5.61199]
[1745657305405,7.3659,1808.7,1807.6,3.2078]
[1745657305598,4.31343,1808.2,1807.9,1.10575]
[1745657305797,4.31343,1808.2,1807.6,3.2078]
[1745657305798,1.10562,1808.2,1808.0,1.10568]
[1745657305997,1.10562,1808.2,1807.9,41.90576]
[1745657306198,1.10559,1808.3,1808.0,1.10572]
[1745657306403,4.1581,1808.3,1808.1,1.10565]
[1745657306895,5.26366,1808.3,1808.1,1.10566]
[1745657307100,4.1581,1808.3,1808.0,5.61231]
[1745657307303,4.1581,1808.3,1808.1,1.10566]
[1745657307503,4.1581,1808.3,1808.2,5.3454]
[1745657307700,1.10544,1808.5,1808.3,1.10554]
[1745657308101,4.5533,1808.6,1808.4,1.10548]
[1745657308303,4.5533,1808.6,1808.2,4.2398]
[1745657308695,4.5669,1808.9,1808.6,1.10532]
[1745657308696,4.31301,1808.9,1808.6,1.10532]
[1745657308901,5.65855,1808.8,1808.6,1.10532]
[1745657309208,5.65855,1808.8,1808.3,2.76386]
[1745657309209,3.2078,1808.9,1808.8,1.10524]
[1745657309509,1.10512,1809.0,1808.8,1.10523]
[1745657309710,5.6584,1809.1,1808.8,1.10523]
[1745657310004,4.5533,1809.1,1808.6,3.2078]
[1745657310308,4.5533,1809.1,1808.7,4.2398]
[1745657310607,4.5533,1809.1,1808.9,1.10517]
[1745657311110,4.5533,1809.1,1809.0,1.10511]
[1745657311304,4.5533,1809.1,1808.9,1.10514]
[1745657311501,3.2078,1809.5,1808.8,3.2078]
[1745657311804,3.2078,1809.8,1809.1,3.2078]
[1745657312004,8.82166,1809.8,1809.5,1.10479]
[1745657312203,7.717,1809.8,1809.5,1.10479]
[1745657312400,3.2078,1809.8,1809.6,4.4341]
[1745657312604,0.08743804,1810.1,1809.9,1.10453]
[1745657313105,1.19192804,1810.1,1809.7,1.10467]
[1745657313303,0.08743804,1810.1,1809.7,4.4341]
[1745657313716,0.08743804,1810.1,1809.9,1.10456]
[1745657313910,0.08743804,1810.1,1810.0,5.2958]
[1745657314209,0.08743804,1810.1,1810.0,4.1913]
[1745657315306,0.08743804,1810.1,1809.9,1.10455]
[1745657315611,0.08743804,1810.1,1809.9,10.4648]
[1745657315810,1.19187804,1810.1,1810.0,4.1913]
[1745657316011,0.08743804,1810.1,1810.0,4.1913]
[1745657316212,5.73587804,1810.1,1810.0,4.1913]
[1745657316708,0.08743804,1810.1,1810.0,4.1913]
[1745657317110,0.08743804,1810.1,1810.0,5.2958]
[1745657317410,0.08743804,1810.1,1810.0,4.1913]
[1745657317609,0.08743804,1810.1,1810.0,5.2958]
[1745657318604,0.08743804,1810.1,1810.0,10.2958]
[1745657319112,0.08743804,1810.1,1810.0,13.5036]
[1745657320297,4.2854,1810.6,1810.4,1.10423]
[1745657320503,16.44065502,1811.1,1810.5,16.02967]
[1745657320803,1.10408,1810.7,1810.5,11.7177]
[1745657321007,3.2078,1810.8,1810.5,11.7177]
[1745657321008,17.82171557,1810.8,1810.5,11.7177]
[1745657321310,17.82171557,1810.8,1810.5,12.82185]
[1745657321311,20.00333557,1810.8,1810.5,12.82185]
[1745657321506,18.89931557,1810.8,1810.6,40.8]
[1745657321708,14.61391557,1810.8,1810.6,41.9041]
[1745657321908,14.61391557,1810.8,1810.7,5.56678]
[1745657322707,14.61391557,1810.8,1810.7,8.77458]
[1745657322907,14.61391557,1810.8,1810.7,5.56678]
[1745657323105,14.61391557,1810.8,1810.7,10.56678]
[1745657323311,14.61391557,1810.8,1810.7,13.77458]
[1745657323507,4.31535362,1810.8,1810.7,13.77458]
[1745657323703,4.31535362,1810.8,1810.7,54.57458]
[1745657323900,15.13883502,1810.9,1810.8,1.10402]
[1745657324407,10.20384509,1811.0,1810.9,1.10395]
[1745657324605,3.75016509,1811.0,1810.9,66.31775]
[1745657324909,3.75016509,1811.0,1810.9,78.31975]
[1745657325101,4.568,1811.6,1811.0,2.75974]
[1745657325303,4.568,1811.6,1811.2,3.2078]
[1745657325504,4.568,1811.6,1811.0,5.96754]
[1745657325710,4.568,1811.6,1811.5,1.10359]
[1745657326209,4.568,1811.6,1811.4,8.10362]
[1745657326717,5.67156,1811.6,1811.4,7.0]
[1745657327310,1.10359,1811.5,1811.4,7.0]
[1745657327513,8.55169,1811.5,1811.4,7.0]
[1745657327714,7.4481,1811.5,1811.4,7.0]
[1745657328112,8.55169,1811.5,1811.4,7.0]
[1745657328314,12.4481,1811.5,1811.0,7.0]
[1745657328514,4.31153,1811.3,1811.0,7.0]
[1745657328716,4.5585,1811.2,1811.0,8.10387]
[1745657329011,4.5585,1811.2,1811.0,7.0]
[1745657329516,4.5585,1811.2,1811.1,1.10383]
[1745657330318,2.75843,1811.9,1811.4,1.10363]
[1745657330319,1.10349,1811.7,1811.4,1.10363]
[1745657330511,4.31143,1811.5,1811.1,1.10378]
[1745657330907,1.10356,1811.6,1811.3,1.10369]
[1745657331114,3.2078,1811.8,1811.0,11.3261]
[1745657331312,1.10354,1811.6,1811.3,1.1037]
[1745657331510,1.10362,1811.5,1811.0,11.3261]
[1745657331820,5.66212,1811.5,1811.2,1.10376]
[1745657332320,4.5585,1811.5,1811.2,1.10373]
[1745657332723,4.5585,1811.5,1811.0,17.29359]
[1745657332915,3.2078,1811.7,1811.2,5.96724]
[1745657333221,4.2882,1811.6,1811.4,1.1036]
[1745657333421,4.2882,1811.6,1811.5,1.10359]
[1745657333920,4.31124,1811.8,1811.5,8.10256]
[1745657334114,4.31124,1811.8,1811.5,6.999]
[1745657334115,4.2882,1811.6,1811.5,6.999]
[1745657334314,4.2882,1811.6,1811.5,8.10259]
[1745657334714,3.2078,1812.0,1811.7,1.10347]
[1745657334918,3.2078,1811.8,1811.5,6.999]
[1745657335118,3.2078,1811.8,1811.5,8.10257]
[1745657335318,3.2078,1811.8,1811.5,6.999]
[1745657335517,4.31124,1811.8,1811.5,6.999]
[1745657335721,1.10344,1811.8,1811.5,8.10257]
[1745657336014,4.5071,1811.7,1811.5,6.999]
[1745657336217,4.5071,1811.7,1811.5,8.10258]
[1745657336418,5.6106,1811.7,1811.5,6.999]
[1745657336619,1.10353,1811.6,1811.5,6.999]
[1745657336816,5.61063,1811.6,1811.5,6.999]
[1745657337018,4.5071,1811.6,1811.5,6.999]
[1745657337322,4.51231868,1811.6,1811.5,6.999]
[1745657337618,4.51231868,1811.6,1811.5,8.10259]
[1745657338517,3.2078,1812.0,1811.7,1.10347]
[1745657338717,7.6172,1812.5,1811.9,5.96617]
[1745657338927,4.4094,1812.5,1812.4,1.10304]
[1745657339115,4.4094,1812.5,1812.3,1.10308]
[1745657339314,1.10306,1812.4,1812.1,1.1032]
[1745657339620,4.4094,1812.3,1812.1,41.9032]
[1745657339816,1.10295,1812.6,1812.2,1.10311]
[1745657340120,4.4094,1812.3,1812.2,1.10311]
[1745657340513,4.31052,1813.0,1812.2,9.5709]
[1745657340713,4.4094,1812.7,1812.2,4.5709]
[1745657341112,4.4094,1812.7,1812.6,1.10292]
[1745657341322,4.4094,1812.7,1812.3,3.2078]
[1745657341517,5.51227,1812.7,1812.4,1.10299]
[1745657341732,1.10316,1812.2,1812.1,40.8]
[1745657342109,4.31096,1812.2,1812.1,40.8]
[1745657342310,5.67007,1812.4,1812.1,40.8]
[1745657342610,1.10316,1812.2,1812.1,40.8]
[1745657342809,4.567,1812.4,1812.1,40.8]
[1745657343024,5.67007,1812.4,1812.1,41.9032]
[1745657343321,4.567,1812.4,1812.2,1.10316]
[1745657343521,4.567,1812.4,1812.1,40.8]
[1745657343826,3.2078,1812.3,1812.1,41.90319]
[1745657344024,3.2078,1812.3,1812.1,40.8]
[1745657344025,5.54276,1812.2,1812.1,40.8]
[1745657344225,4.4396,1812.2,1812.1,40.8]
[1745657344525,5.54276,1812.2,1812.1,40.8]
[1745657344824,4.4396,1812.2,1812.1,41.90322]
[1745657345328,4.4396,1812.2,1812.0,6.997]
[1745657345624,1.10322,1812.1,1812.0,6.997]
[1745657345924,1.10322,1812.1,1812.0,47.797]
[1745657346317,4.31102,1812.1,1812.0,6.997]
[1745657346824,1.10338,1811.9,1811.8,40.8]
[1745657347130,4.1566,1812.0,1811.9,1.10335]
[1745657347924,5.25989,1812.0,1811.8,40.8]
[1745657348126,1.10335,1811.9,1811.8,40.8]
[1745657348327,4.1566,1811.9,1811.8,40.8]
[1745657348626,5.25995,1811.9,1811.8,40.8]
[1745657348828,1.10341,1811.8,1811.7,3.2078]
[1745657349123,15.43102,1811.8,1810.8,3.2078]
[1745657349328,3.2078,1811.3,1810.8,4.31179]
[1745657349628,1.10387,1811.1,1810.9,1.10395]
[1745657349813,5.26051,1811.0,1810.8,3.2078]
[1745657350015,3.2078,1810.9,1810.2,3.2078]
[1745657350320,1.1043,1810.4,1810.2,4.4869]
[1745657350520,4.5871,1810.3,1810.2,40.8]
[1745657350729,1.65922,1810.3,1810.2,40.8]
[1745657351419,2.76354,1810.3,1810.2,40.8]
[1745657351620,6.65922,1810.3,1809.7,3.2078]
[1745657351820,3.2078,1809.8,1809.4,3.2078]